fUSD/lending_fUSD_20240812
["ID","MTS","AMOUNT","RATE_DAILY","PERIOD"]
[334682772,1723468272365,-150.0,0.00017991,2]
[334682773,1723468272375,-240.47220317,0.00017991,2]
[334682774,1723468272384,-308.26193439,0.00018,2]
[334682775,1723468272393,-1600.0,0.00018,4]
[334682776,1723468272403,-1298.14500082,0.00018,2]
[334682777,1723468272417,-665.89467279,0.00018,30]
[334682778,1723468272428,-656.75453013,0.00018,2]
[334682779,1723468272439,-1119.52542897,0.00018,2]
[334682780,1723468272450,-5554.75876598,0.00018,2]
[334682781,1723468272460,-155.25845723,0.00018,2]
[334682782,1723468272469,-750.0,0.00018,2]
[334682783,1723468272479,-232.0,0.00018,5]
[334682784,1723468272490,-5974.9047074,0.00018,2]
[334682785,1723468272510,-6339.61331955,0.00018,2]
[334682786,1723468272527,-2089.86470127,0.00018,2]
[334682787,1723468272539,-383.87296915,0.00018,2]
[334682788,1723468272550,-3415.85522299,0.00018,2]
[334682789,1723468272561,-1033.05017563,0.00018,2]
[334682790,1723468272572,-1636.31814337,0.00018,2]
[334682791,1723468272583,-2386.28842164,0.00018,2]
[334682792,1723468272593,-549.1144139,0.00018011,2]
[334682793,1723468272603,-184.83140106,0.00018011,2]
[334682794,1723468272612,-150.0,0.00018014,2]
[334682795,1723468272621,-549.1144139,0.00018031,2]
[334682796,1723468272630,-184.83140106,0.00018031,2]
[334682797,1723468272639,-150.0,0.00018036,2]
[334682798,1723468272648,-150.0,0.00018048,2]
[334682799,1723468272658,-484.20962573,0.00018052,2]
[334682800,1723468272673,-64.90478817,0.00018052,2]
[334682801,1723468272683,-184.83140106,0.00018052,2]
[334682802,1723468272692,-150.0,0.00018059,2]
[334682803,1723468272702,-549.1144139,0.00018072,2]
[334682804,1723468272711,-184.83140106,0.00018072,2]
[334682805,1723468272720,-150.0,0.00018082,2]
[334682806,1723468272729,-175.15767864,0.00018082,2]
[334682807,1723468272741,-409.14193754,0.00018082,2]
[334682808,1723468272752,-295.25514135,0.00018082,2]
[334682809,1723468272764,-1120.44524247,0.00018082,2]
[334682810,1723468272773,-549.1144139,0.00018092,2]
[334682811,1723468272784,-184.83140106,0.00018092,2]
[334682812,1723468272793,-452.48710172,0.000181,2]
[334682813,1723468272805,-677.99999947,0.000181,2]
[334682815,1723468272816,-544.00565615,0.000181,2]
[334682816,1723468272825,-150.0,0.00018105,2]
[334682817,1723468272834,-150.0,0.00018105,2]
[334682818,1723468272844,-549.1144139,0.00018112,2]
[334682819,1723468272854,-184.83140106,0.00018112,2]
[334682820,1723468272867,-150.0,0.00018127,2]
[334682821,1723468272881,-549.1144139,0.00018132,2]
[334682822,1723468272896,-184.83140106,0.00018132,2]
[334682823,1723468272912,-152.0,0.00018145,12]
[334682824,1723468272924,-150.0,0.0001815,2]
[334682825,1723468272938,-549.1144139,0.00018153,2]
[334682826,1723468272952,-184.83140106,0.00018153,2]
[334682827,1723468272966,-150.0,0.00018158,2]
[334682828,1723468272979,-150.0,0.00018162,2]
[334682829,1723468272993,-317.16,0.0001817,2]
[334682830,1723468273007,-549.1144139,0.00018173,2]
[334682831,1723468273020,-184.83140106,0.00018173,2]
[334682832,1723468273033,-150.0,0.00018173,2]
[334682833,1723468273047,-800.0,0.00018187,2]
[334682834,1723468273061,-525.86892964,0.00018193,2]
[334682835,1723468273076,-23.24548426,0.00018193,2]
[334682836,1723468273087,-184.83140106,0.00018193,2]
[334682837,1723468273100,-150.0,0.00018195,2]
[334682838,1723468273113,-549.1144139,0.00018213,2]
[334682839,1723468273127,-184.83140106,0.00018213,2]
[334682840,1723468273141,-150.0,0.00018213,2]
[334682841,1723468273156,-150.0,0.00018218,2]
[334682842,1723468273173,-150.0,0.00018219,2]
[334682843,1723468273187,-549.1144139,0.00018233,2]
[334682844,1723468273198,-184.83140106,0.00018233,2]
[334682845,1723468273210,-150.0,0.00018241,2]
[334682846,1723468273223,-54.00233088,0.00018253,2]
[334682847,1723468273240,-495.11208302,0.00018253,2]
[334682848,1723468273253,-35.88791698,0.00018253,2]
[334682849,1723468273268,-148.94348408,0.00018253,2]
[334682850,1723468273281,-150.0,0.00018264,2]
[334682851,1723468273295,-549.1144139,0.00018274,2]
[334682852,1723468273307,-184.83140106,0.00018274,2]
[334682853,1723468273318,-150.0,0.00018277,2]
[334682854,1723468273333,-150.0,0.00018286,2]
[334682855,1723468273345,-549.1144139,0.00018294,2]
[334682856,1723468273358,-184.83140106,0.00018294,2]
[334682857,1723468273370,-150.0,0.00018309,2]
[334682858,1723468273383,-549.1144139,0.00018314,2]
[334682859,1723468273396,-184.83140106,0.00018314,2]
[334682860,1723468273408,-150.0,0.00018324,2]
[334682861,1723468273427,-150.0,0.00018332,2]
[334682862,1723468273441,-101.0794313,0.00018334,2]
[334682863,1723468273502,-266.92791933,0.00010999,2]
[334682864,1723468273515,-48.9205687,0.00018334,2]
[334682865,1723468273529,-116.65151197,0.00018334,2]
[334682866,1723468273544,-432.46290193,0.00018334,2]
[334682867,1723468273557,-184.83140106,0.00018334,2]
[334682868,1723468273570,-549.1144139,0.00018354,2]
[334682869,1723468273581,-184.83140106,0.00018354,2]
[334682870,1723468273592,-150.0,0.00018354,2]
[334682871,1723468273603,-28.4192508,0.00018356,2]
[334682872,1723468273617,-342.80000028,0.00018356,2]
[334682873,1723468273632,-1628.78074892,0.00018356,2]
[334682874,1723468273644,-549.1144139,0.00018375,2]
[334682875,1723468273654,-184.83140106,0.00018375,2]
[334682876,1723468273670,-150.0,0.00018377,2]
[334682877,1723468273681,-150.0,0.00018391,2]
[334682878,1723468273692,-150.0,0.00018391,2]
[334682879,1723468273704,-549.1144139,0.00018395,2]
[334682880,1723468273715,-184.83140106,0.00018395,2]
[334682881,1723468273727,-150.0,0.000184,2]
[334682882,1723468273739,-549.1144139,0.00018415,2]
[334682883,1723468273750,-184.83140106,0.00018415,2]
[334682884,1723468273761,-150.0,0.00018423,2]
[334682885,1723468273772,-85.66012448,0.00018435,2]
[334682937,1723468479841,-665.89467279,0.00020899,30]
[334682938,1723468479865,-1050.97743081,0.00020899,40]
[334682939,1723468479912,-5002.12001,0.00024,30]
[334682940,1723468480002,-1000.0,0.00024876,31]
[334682941,1723468480027,-5000.0,0.0002488,30]
[334682942,1723468480055,-190.95,0.000249,31]
[334682943,1723468480087,-190.95,0.000249,31]
[334682944,1723468480113,-190.95,0.000249,31]
[334682945,1723468480138,-190.95,0.000249,31]
[334682946,1723468480162,-190.95,0.000249,31]
[334682947,1723468480187,-190.95,0.000249,31]
[334682948,1723468480212,-190.95,0.000249,31]
[334682949,1723468480238,-190.95,0.000249,31]
[334682950,1723468480263,-190.95,0.000249,31]
[334682951,1723468480289,-190.95,0.000249,31]
[334682952,1723468480316,-190.95,0.000249,31]
[334682953,1723468480344,-190.95,0.000249,31]
[334682954,1723468480369,-190.95,0.000249,31]
[334682955,1723468480395,-190.95,0.000249,31]
[334682956,1723468480421,-190.95,0.000249,31]
[334682957,1723468480449,-190.95,0.000249,31]
[334682958,1723468480475,-190.95,0.000249,31]
[334682959,1723468480502,-190.95,0.000249,31]
[334682960,1723468480532,-190.95,0.000249,31]
[334682961,1723468480558,-190.95,0.000249,31]
[334682962,1723468480605,-143.5374753,0.00025,30]
[334682963,1723468480632,-500.0,0.00025,30]
[334682964,1723468480700,-310.0,0.00026,30]
[334682965,1723468480768,-200.0,0.00027,90]
[334682966,1723468480792,-200.0,0.00027,110]
[334682967,1723468480820,-190.95,0.00027,31]
[334682968,1723468480845,-190.95,0.00027,31]
[334682969,1723468480871,-190.95,0.00027,31]
[334682970,1723468480898,-190.95,0.00027,31]
[334682971,1723468480924,-190.95,0.00027,31]
[334682972,1723468480950,-190.95,0.00027,31]
[334682973,1723468480979,-190.95,0.00027,31]
[334682974,1723468481007,-190.95,0.00027,31]
[334682975,1723468481034,-190.95,0.00027,31]
[334682976,1723468481061,-190.95,0.00027,31]
[334682977,1723468481089,-190.95,0.00027,31]
[334682978,1723468481117,-190.95,0.00027,31]
[334682979,1723468481142,-190.95,0.00027,31]
[334682980,1723468481169,-190.95,0.00027,31]
[334682981,1723468481198,-190.95,0.00027,31]
[334682982,1723468481225,-190.95,0.00027,31]
[334682983,1723468481252,-190.95,0.00027,31]
[334682984,1723468481280,-190.95,0.00027,31]
[334682985,1723468481307,-190.95,0.00027,31]
[334682986,1723468481333,-190.95,0.00027,31]
[334682987,1723468481357,-232.53,0.00027068,30]
[334682988,1723468481391,-295.10391917,0.0002739,30]
[334682989,1723468481419,-2000.0,0.00027397,30]
[334682990,1723468481444,-2000.0,0.00027397,30]
[334682991,1723468481469,-2000.0,0.00027397,30]
[334682992,1723468481495,-2000.0,0.00027397,30]
[334682993,1723468481525,-2000.0,0.00027397,30]
[334682994,1723468481550,-2000.0,0.00027397,30]
[334682995,1723468481576,-2000.0,0.00027397,30]
[334682996,1723468481604,-2000.0,0.00027397,30]
[334682997,1723468481629,-2000.0,0.00027397,30]
[334682998,1723468481654,-2000.0,0.00027397,30]
[334682999,1723468481677,-2000.0,0.00027397,30]
[334683000,1723468481705,-200.0,0.00027397,60]
[334683002,1723468487678,665.89467279,0.00020899,30]
[334683055,1723468707717,400.0,0.00025723,120]
[334683174,1723469271181,565.13,9.068e-05,2]
[334683344,1723469432128,-300.96532236,0.0001,2]
[334683345,1723469432143,-249.03467764,0.0001,2]
[334683346,1723469432159,-150.0,0.00010563,2]
[334683347,1723469432168,-150.0,0.00010739,2]
[334683348,1723469432178,-150.0,0.00010915,2]
[334683349,1723469432187,-250.0,0.00010934,2]
[334683350,1723469432196,-200.0,0.00010973,2]
[334683351,1723469432206,-2892.96949473,0.00010997,2]
[334683352,1723469432215,-194.45823864,0.00010999,2]
[334683353,1723469432224,-513.55714599,0.00010999,2]
[334683354,1723469432233,-202086.06133383,0.00011,2]
[334683355,1723469432246,-7839.8235,0.00011,2]
[334683356,1723469432257,-5243.29172088,0.00011,2]
[334683357,1723469432267,-732.16651249,0.00011,2]
[334683358,1723469432301,-2186.65209013,0.00011,2]
[334683359,1723469432312,-11974.31523528,0.00011,2]
[334683360,1723469432333,-428.45648914,0.00011,2]
[334683361,1723469432344,-681.39069848,0.00011,2]
[334683383,1723469438254,-120704.04300774,0.00011,2]
[334683384,1723469438271,-113380.17351874,0.00011,2]
[334683385,1723469438283,-6122.56675531,0.00011,2]
[334683386,1723469438358,-2380.84375002,0.00011,2]
[334683387,1723469438718,-716.51716,0.00011,2]
[334683420,1723469440458,-1426.81907622,0.00011,2]
[334683684,1723469443182,-411.7493109,0.000109,2]
[334683695,1723469443272,-373.0054891,0.000109,2]
[334683697,1723469443282,-4302.74158027,0.00011,2]
[334683790,1723469444166,-854.55749319,0.00011,2]
[334683792,1723469444178,-40090.27921467,0.00011,2]
[334683794,1723469444187,-174336.50820913,0.00011,2]
[334683796,1723469444199,-1377.74172289,0.00011,2]
[334683799,1723469444210,-469.39736347,0.00011,2]
[334684012,1723469446300,-3023.85582495,0.00011,2]
[334684013,1723469446312,-6882.92088896,0.00011,2]
[334684014,1723469446323,-2724.06463535,0.00011,2]
[334684015,1723469446334,-451.34,0.00011,2]
[334684016,1723469446345,-1834.85362429,0.00011,2]
[334684019,1723469446403,-4407.42715654,0.00011,2]
[334684021,1723469446414,-717.12394233,0.00011,2]
[334684030,1723469446489,-5966.9,0.00011,2]
[334684032,1723469446500,-729.07283815,0.00011,2]
[334684034,1723469446511,-1141.6,0.00011,2]
[334684036,1723469446522,-2858.56287337,0.00011,2]
[334684039,1723469446533,-418.67989746,0.00011,2]
[334684046,1723469446589,-553.22115253,0.00011,2]
[334684048,1723469446600,-1195.57080635,0.00011,2]
[334686240,1723469843988,556.9,9.07e-05,2]
[334686242,1723470306236,529.05,8.485e-05,2]
[334686329,1723470478759,-550.0,0.0001,2]
[334686330,1723470478780,-276.36024856,0.00010185,2]
[334686331,1723470478801,-10000.0,0.00010249,2]
[334686332,1723470478822,-155.10924938,0.00010285,2]
[334686333,1723470478843,-1000.0,0.00010329,2]
[334686334,1723470478864,-220.74,0.00010341,2]
[334686335,1723470478885,-250.0,0.00010492,2]
[334686336,1723470478914,-2230.6661,0.00010583,2]
[334686337,1723470478937,-11438.3056095,0.00010583,2]
[334686338,1723470478962,-300.0,0.00010682,2]
[334686339,1723470478984,-14578.81879256,0.00010684,2]
[334686380,1723470632360,-9311.18,0.00010669,2]
[334686381,1723470632370,-162.72933545,0.00010684,2]
[334686382,1723470632381,-449.58622418,0.00010684,2]
[334686383,1723470632391,-413.15115888,0.00010684,2]
[334686384,1723470632401,-181.84064908,0.00010684,2]
[334686385,1723470632413,-327.26830426,0.00010684,2]
[334686386,1723470632422,-299.98698689,0.00010684,2]
[334686387,1723470632432,-529.05,0.00010748,2]
[334686388,1723470632442,-255.66,0.000108,2]
[334686389,1723470632451,-1595.4953,0.000108,2]
[334686390,1723470632460,-2500.0,0.000108,2]
[334686391,1723470632473,-150.0,0.00010877,2]
[334686392,1723470632483,-3000.0,0.0001089,2]
[334686393,1723470632492,-150.0,0.00010899,2]
[334686394,1723470632501,-10737.67668131,0.00010899,2]
[334686395,1723470632511,-562.349,0.000109,2]
[334686396,1723470632520,-566.6201,0.000109,2]
[334686397,1723470632530,-1000.0,0.000109,2]
[334686398,1723470632539,-179698.8278,0.000109,2]
[334686399,1723470632548,-442.96160712,0.000109,2]
[334686400,1723470632558,-499.99,0.000109,2]
[334686401,1723470632568,-1636.80266886,0.000109,2]
[334686402,1723470632577,-162.97553613,0.000109,2]
[334686403,1723470632587,-150.0,0.00010959,2]
[334686404,1723470632596,-2000.0,0.00010959,2]
[334686405,1723470632819,-276.11,0.00010959,2]
[334686406,1723470632829,-194.98,0.00010959,2]
[334686408,1723470632839,-200.0,0.00010973,2]
[334686410,1723470632848,-249.99795155,0.00010991,2]
[334686412,1723470632859,-526.71491504,0.00010994,2]
[334686414,1723470632872,-1257.5209126,0.00010994,2]
[334686416,1723470632885,-948.7757435,0.00010994,2]
[334686418,1723470632895,-6119.37613467,0.00010997,2]
[334686419,1723470632905,-501.49882417,0.00010999,2]
[334686420,1723470632915,-2496.81,0.00010999,2]
[334686421,1723470632924,-588.8956245,0.00010999,2]
[334686422,1723470632934,-28661.82791381,0.00011,2]
[334686423,1723470632946,-278.60878409,0.00011,2]
[334686424,1723470632957,-1386.10575894,0.00011,2]
[334686425,1723470632976,-289.3455407,0.00011,2]
[334686426,1723470632987,-45735.36960216,0.00011,2]
[334686427,1723470632999,-4773.11977575,0.00011,2]
[334686428,1723470633042,-6286.357445,0.00011,2]
[334686429,1723470633083,-2948.85,0.00011,2]
[334686430,1723470633095,-15551.70140869,0.00011,2]
[334686431,1723470633108,-603.38328281,0.00011,2]
[334686432,1723470633120,-6499.02376926,0.00011,2]
[334686433,1723470633132,-3152.2433142,0.00011,2]
[334686434,1723470633145,-43776.0,0.00011,2]
[334686442,1723470638552,-11096.09015601,0.00011,2]
[334686443,1723470638564,-37361.40303515,0.00011,2]
[334686444,1723470638576,-10664.97387175,0.00011,2]
[334686445,1723470638591,-4879.27947156,0.00011,2]
[334686446,1723470638602,-49706.77846471,0.00011,2]
[334686447,1723470638910,-1777.0,0.00011,2]
[334686448,1723470638922,-2953.88686576,0.00011,2]
[334686449,1723470638934,-695.50208201,0.00011,2]
[334686507,1723470643352,-1300.0,0.00011,2]
[334686521,1723470643385,-962.40480025,0.00011,2]
[334686526,1723470643400,-1027.23639687,0.00011,2]
[334686529,1723470643414,-719.26763437,0.00011,2]
[334686533,1723470643427,-1166.5322319,0.00011,2]
[334686537,1723470643440,-259.11894655,0.00011,2]
[334686543,1723470643456,-100328.41339476,0.00011,2]
[334686547,1723470643471,-118252.68363162,0.00011,2]
[334686550,1723470643485,-293.56,0.00011,2]
[334686553,1723470643502,-592.09,0.00011,2]
[334686555,1723470643515,-1961.48408926,0.00011,2]
[334686558,1723470643537,-686.36462203,0.00011,2]
[334686559,1723470643560,-214426.7874238,0.00011,2]
[334686560,1723470643629,-840.77658634,0.00011,2]
[334686561,1723470643642,-75904.46700001,0.00011,2]
[334686562,1723470643657,-2642.0,0.00011,2]
[334686563,1723470643670,-124198.43917966,0.00011,2]
[334686564,1723470643736,-412.72122708,0.00011,2]
[334686565,1723470643750,-1094.57625342,0.00011,2]
[334686584,1723470646669,-561.55,0.00011,2]
[334686585,1723470646682,-2962.30935,0.00011,2]
[334686586,1723470646698,-549.96057904,0.00011,2]
[334686587,1723470646709,-428.14761913,0.00011,2]
[334686588,1723470646815,-479.78533913,0.00011,2]
[334686589,1723470646826,-5905.60140653,0.00011,2]
[334686590,1723470646942,-5903.54,0.00011,2]
[334686591,1723470646954,-704.85845544,0.00011,2]
[334686592,1723470646965,-6320.5,0.00011,2]
[334686593,1723470646981,-353.47,0.00011,2]
[334686594,1723470646996,-656.37,0.00011,2]
[334686609,1723470767602,476.14,9.002e-05,2]
[334686620,1723471247627,489.84,8.219e-05,2]
[334686626,1723471434455,250.0,9.647e-05,2]
[334686630,1723471485014,-1050.97743081,0.00015999,40]
[334686658,1723471706934,465.34,8.219e-05,2]
[334686659,1723471753784,150.5,0.00017856,120]
[334686660,1723471753813,150.5,0.00017856,120]
[334686661,1723471754369,150.5,0.00017846,120]
[334686662,1723471754791,150.5,0.00017846,120]
[334686663,1723471754868,150.5,0.00017836,120]
[334686664,1723471755275,170.33,0.00017836,120]
[334686665,1723471755349,239.56,0.0002049,120]
[334686707,1723471832271,-268.36,9.715e-05,2]
[334686708,1723471832281,-23900.0,9.75e-05,2]
[334686709,1723471832291,-3159.52,9.755e-05,2]
[334686710,1723471832300,-800.0,9.8e-05,2]
[334686711,1723471832309,-175.57,9.8e-05,2]
[334686712,1723471832318,-179.2,9.808e-05,2]
[334686713,1723471832328,-4186.18,9.808e-05,2]
[334686717,1723471832541,-1113.38,9.836e-05,2]
[334686718,1723471832552,-3290.85,9.865e-05,2]
[334686719,1723471832562,-200.0,9.899e-05,2]
[334686720,1723471832571,-200.0,9.907e-05,2]
[334686721,1723471832580,-497.29,9.942e-05,2]
[334686722,1723471832592,-200.0,0.0001038,2]
[334686723,1723471832602,-178.44,0.00010408,2]
[334686724,1723471832611,-465.34,0.00010464,2]
[334686725,1723471832620,-400.0,0.000105,3]
[334686726,1723471832630,-800.0,0.000106,3]
[334686727,1723471832639,-1200.0,0.000107,3]
[334686728,1723471832648,-231.8913516,0.0001078,2]
[334686729,1723471832657,-1700.0,0.000108,3]
[334686730,1723471832669,-461.1654,0.000108,2]
[334686731,1723471832678,-2477.58247713,0.0001089,2]
[334686732,1723471832687,-150.0,0.00010899,2]
[334686733,1723471832696,-1000.0,0.000109,2]
[334686734,1723471832706,-7476.2555,0.000109,2]
[334686735,1723471832715,-15474.5109,0.000109,2]
[334686736,1723471832724,-4281.2893,0.000109,2]
[334686737,1723471832734,-1000.0,0.000109,2]
[334686738,1723471832743,-2500.0,0.000109,2]
[334686739,1723471832752,-260.4298,0.000109,2]
[334686740,1723471832761,-12493.01720926,0.000109,2]
[334686741,1723471832770,-2100.0,0.000109,3]
[334686742,1723471832779,-497.86808237,0.000109,2]
[334686743,1723471832788,-157.39258195,0.000109,2]
[334686744,1723471832797,-227.4550604,0.000109,2]
[334686745,1723471832806,-189.1551793,0.000109,2]
[334686746,1723471832815,-155.67856311,0.00010911,2]
[334686747,1723471832824,-295.82107484,0.00010911,2]
[334686748,1723471832833,-303.95736794,0.00010911,2]
[334686749,1723471832842,-1775.40863533,0.00010911,2]
[334686750,1723471832851,-155.02620649,0.00010911,2]
[334686751,1723471832861,-155.09273065,0.00010911,2]
[334686752,1723471832870,-670.98,0.00010959,2]
[334686753,1723471832879,-250.0,0.00010959,2]
[334686754,1723471832888,-200.0,0.00010973,2]
[334686755,1723471832897,-200.0,0.00010973,2]
[334686756,1723471832906,-200.0,0.00010973,2]
[334686757,1723471832915,-308.26863758,0.00010997,2]
[334686758,1723471832924,-500.0,0.00010999,2]
[334686759,1723471832934,-171.36867353,0.00010999,2]
[334686760,1723471832943,-434.51000769,0.00010999,2]
[334686761,1723471832953,-435.95315931,0.00010999,2]
[334686762,1723471832962,-157733.2288839,0.00011,2]
[334686763,1723471832974,-5800.62982464,0.00011,2]
[334686764,1723471832992,-2931.15,0.00011,2]
[334686765,1723471833007,-2070.15705126,0.00011,2]
[334686770,1723471837656,-280.0,9.75e-05,2]
[334686771,1723471837669,-1985.41192799,9.75e-05,2]
[334686772,1723471837678,-1302.80681641,0.00011,2]
[334686773,1723471837715,-597.31585946,0.00011,2]
[334686774,1723471837768,-11085.03,0.00011,2]
[334686775,1723471837780,-5800.0,0.00011,2]
[334686776,1723471837792,-221270.05531757,0.00011,2]
[334686777,1723471837821,-5151.53303482,0.00011,2]
[334686778,1723471837874,-2087.21303329,0.00011,2]
[334686779,1723471838023,-869.96684025,0.00011,2]
[334686920,1723471839853,-100761.75838008,0.00011,2]
[334686922,1723471839863,-172040.58166601,0.00011,2]
[334686924,1723471839874,-582.9648408,0.00011,2]
[334686929,1723471839909,-6067.85000486,0.00011,2]
[334687137,1723471842786,-339.58874406,0.00011,2]
[334687138,1723471842798,-562.6023957,0.00011,2]
[334687139,1723471842809,-1813.43575521,0.00011,2]
[334687143,1723471842833,-522.36,0.00011,2]
[334687145,1723471842844,-3606.14856082,0.00011,2]
[334687147,1723471842856,-942.316296,0.00011,2]
[334687149,1723471842867,-3924.82045367,0.00011,2]
[334687151,1723471842879,-543.39927312,0.00011,2]
[334687153,1723471842890,-1286.60184659,0.00011,2]
[334687156,1723471842901,-730.07140233,0.00011,2]
[334687159,1723471842913,-652.62529538,0.00011,2]
[334687161,1723471842929,-238326.7874238,0.00011,2]
[334687164,1723471842946,-2282.97483465,0.00011,2]
[334687166,1723471842958,-1967.34915005,0.00011,2]
[334687168,1723471842969,-5812.1,0.00011,2]
[334687170,1723471842980,-17286.04645497,0.00011,2]
[334687429,1723471845719,-2918.41634722,0.00011,2]
[334687436,1723471845771,-7730.50481181,0.00011,2]
[334687438,1723471845782,-743.3523116,0.00011,2]
[334687440,1723471845792,-260.644996,0.00011,2]
[334687444,1723471845822,-734.01641473,0.00011,2]
[334687451,1723471845874,-943.31862009,0.00011,2]
[334687453,1723471845886,-635.39287192,0.00011,2]
[334687467,1723471846026,-3145.66036694,0.00011,2]
[334687470,1723471846037,-551.39310115,0.00011,2]
[334687472,1723471846051,-1481.03401387,0.00011,2]
[334687474,1723471846062,-5673.32239642,0.00011,2]
[334687476,1723471846073,-7860.89999988,0.00011,2]
[334687478,1723471846084,-3929.113636,0.00011,2]
[334687480,1723471846095,-1735.9475038,0.00011,2]
[334687483,1723471846106,-650.35000001,0.00011,2]
[334687485,1723471846118,-2539.55855612,0.00011,2]
[334687565,1723472164269,437.53,8.565e-05,2]
[334687576,1723472796304,2211.18842616,0.00013,30]
[334687578,1723472818899,-550.0,0.0001,2]
[334687579,1723472818925,-1500.0,0.0001,2]
[334687580,1723472828054,-225.0,0.0001,2]
[334687581,1723472828081,-200.0,0.00010046,2]
[334687582,1723472828104,-475.0,0.00010163,2]
[334687584,1723472840180,415.65,8.292e-05,2]
[334687585,1723472840729,-164.51,0.00010163,2]
[334687586,1723472840752,-300.0,0.00010225,2]
[334687587,1723472840775,-9555.49,0.00010226,2]
[334687589,1723472852696,-250.0,0.0001021,2]
[334687590,1723472852719,-444.51,0.00010226,2]
[334687591,1723472852743,-560.08,0.00010226,2]
[334687592,1723472852767,-640.0,0.00010301,2]
[334687593,1723472852791,-360.0,0.00010339,2]
[334687594,1723472852814,-1257.5209126,0.00010382,2]
[334687595,1723472852836,-948.7757435,0.00010382,2]
[334687596,1723472852858,-191.48055914,0.00010382,2]
[334687597,1723472852883,-2211.18842616,0.00010382,2]
[334687598,1723472852908,-6611.97465705,0.00010382,2]
[334687599,1723472852931,-6521.46970155,0.00010458,2]
[334687600,1723472864155,-415.65,0.00010556,2]
[334687601,1723472864178,-360.0,0.0001073,2]
[334687602,1723472864200,-210.2,0.0001073,2]
[334687603,1723472864222,-150.0,0.00010828,2]
[334687604,1723472864244,-1997.2,0.00010829,2]
[334687605,1723472864266,-499.99,0.00010829,2]
[334687606,1723472864288,-150.99,0.00010899,2]
[334687607,1723472864310,-2354.23,0.00010899,2]
[334687608,1723472864333,-13961.74,0.000109,2]
[334687609,1723472872011,-1050.68636838,0.00010226,2]
[334687610,1723472872035,-23275.08,0.00010599,2]
[334687611,1723472872060,-940.6765,0.000109,2]
[334687612,1723472872084,-1993.5218,0.000109,2]
[334687613,1723472872106,-710.2931,0.000109,2]
[334687614,1723472872128,-1080.6307,0.000109,2]
[334687615,1723472872154,-564.9985,0.000109,2]
[334687616,1723472872177,-384.11303162,0.000109,2]
[334687655,1723473032690,-300.0,0.00010225,2]
[334687656,1723473032699,-150.0,0.00010225,2]
[334687657,1723473032708,-341.6848302,0.00010226,2]
[334687658,1723473032719,-720.93123904,0.00010226,2]
[334687659,1723473032756,-3800.0,0.00010226,2]
[334687660,1723473032768,-881.42115809,0.00010226,2]
[334687661,1723473032780,-10353.07846241,0.00010226,2]
[334687662,1723473032792,-450.44936041,0.00010226,2]
[334687663,1723473032808,-4740.60407958,0.00010226,2]
[334687664,1723473032819,-706.77598637,0.00010226,2]
[334687665,1723473032832,-371.55671753,0.00010226,2]
[334687666,1723473032960,-3172.38668386,0.00010226,2]
[334687667,1723473032972,-2832.5578982,0.00010226,2]
[334687668,1723473032983,-7450.05,0.00010226,2]
[334687693,1723473033335,-2269.70341727,0.00010226,2]
[334687694,1723473033348,-490.46366303,0.00010226,2]
[334687695,1723473033359,-697.89036063,0.00010226,2]
[334687696,1723473033371,-6318.91836194,0.00010226,2]
[334687697,1723473033386,-597.34227907,0.00010226,2]
[334687698,1723473033402,-1056.83712379,0.00010226,2]
[334687702,1723473037910,-181.84064908,0.000109,2]